fUSD/lending_fUSD_20240527
["ID","MTS","AMOUNT","RATE_DAILY","PERIOD"]
[328020541,1716773552612,-881.49,0.0003178,4]
[328020542,1716773552623,-500.0,0.0003178,4]
[328020543,1716773552635,-1016.57,0.0003178,4]
[328020544,1716773552646,-760.48,0.0003178,4]
[328020545,1716773552658,-10252.41,0.0003178,4]
[328020546,1716773552669,-601.05,0.0003178,4]
[328020547,1716773552681,-984.73,0.0003178,4]
[328020548,1716773552694,-879.73,0.0003178,4]
[328020549,1716773552706,-1296.31,0.0003178,4]
[328020550,1716773552718,-913.5,0.0003178,4]
[328020551,1716773552730,-627.73,0.0003178,4]
[328020552,1716773552742,-12959.85,0.0003178,4]
[328020553,1716773552754,-1152.84,0.0003178,4]
[328020554,1716773552766,-1257.91,0.0003178,4]
[328020555,1716773552778,-1837.75,0.0003178,4]
[328020556,1716773552790,-500.0,0.0003178,4]
[328020557,1716773552802,-2024.08,0.0003178,4]
[328020558,1716773552815,-602.61,0.0003178,4]
[328020559,1716773552828,-500.0,0.0003178,4]
[328020560,1716773552841,-1234.35,0.0003178,4]
[328020561,1716773552857,-500.0,0.0003178,4]
[328020562,1716773552869,-158.0,0.0003178,4]
[328020563,1716773552881,-1687.26,0.0003178,4]
[328020564,1716773552895,-869.6,0.0003178,4]
[328020565,1716773552907,-572.54,0.0003178,4]
[328020566,1716773552921,-500.0,0.0003178,4]
[328020567,1716773552934,-1160.09,0.0003178,4]
[328020568,1716773552946,-915.48,0.0003178,4]
[328020569,1716773552958,-894.59,0.0003178,4]
[328020570,1716773552971,-1359.95,0.0003178,4]
[328020571,1716773552983,-777.55,0.0003178,4]
[328020572,1716773552996,-955.96,0.0003178,4]
[328020573,1716773553008,-500.0,0.0003178,4]
[328020574,1716773553021,-590.73,0.0003178,4]
[328020575,1716773553032,-824.44,0.0003178,4]
[328020576,1716773553045,-1899.17,0.0003178,4]
[328020577,1716773553056,-500.0,0.0003178,4]
[328020578,1716773553068,-709.3,0.0003178,4]
[328020579,1716773553080,-500.0,0.0003178,4]
[328020580,1716773553092,-1522.47,0.0003178,4]
[328020581,1716773553103,-726.34,0.0003178,4]
[328020582,1716773553115,-1111.07,0.0003178,4]
[328020583,1716773553126,-6862.17,0.0003178,4]
[328020584,1716773553138,-1636.35,0.0003178,4]
[328020585,1716773553149,-500.0,0.0003178,4]
[328020586,1716773553161,-977.11,0.0003178,4]
[328020587,1716773553172,-879.18,0.0003178,4]
[328020588,1716773553184,-1153.21,0.0003178,4]
[328020589,1716773553196,-688.44,0.0003178,4]
[328020590,1716773553208,-706.27,0.0003178,4]
[328020591,1716773553219,-500.0,0.0003178,4]
[328020592,1716773553230,-1139.88,0.0003178,4]
[328020593,1716773553242,-500.0,0.0003178,4]
[328020594,1716773553253,-1445.7,0.0003178,4]
[328020595,1716773553265,-818.95,0.0003178,4]
[328020596,1716773553276,-2130.92,0.0003178,4]
[328020597,1716773553287,-3583.63,0.0003178,4]
[328020598,1716773553297,-5398.85,0.0003178,4]
[328020599,1716773553309,-874.92,0.0003178,4]
[328020600,1716773553320,-1049.53,0.0003178,4]
[328020601,1716773553331,-6155.22,0.0003178,4]
[328020602,1716773553343,-2307.64,0.0003178,4]
[328020603,1716773553354,-500.0,0.0003178,4]
[328020604,1716773553365,-500.0,0.0003178,4]
[328020605,1716773553376,-647.85,0.0003178,4]
[328020606,1716773553389,-1590.14,0.0003178,4]
[328020607,1716773553400,-1987.82,0.0003178,4]
[328020608,1716773553411,-4196.44,0.0003178,4]
[328020609,1716773553423,-224.0,0.0003178,4]
[328020610,1716773553435,-1672.39,0.0003178,4]
[328020611,1716773553447,-1529.19,0.0003178,4]
[328020612,1716773553460,-500.0,0.0003178,4]
[328020613,1716773553471,-1357.3,0.0003178,4]
[328020614,1716773553482,-3193.96,0.0003178,4]
[328020615,1716773553494,-500.0,0.0003178,4]
[328020616,1716773553506,-2967.77,0.0003178,4]
[328020617,1716773553518,-1331.17,0.0003178,4]
[328020618,1716773553530,-953.21,0.0003178,4]
[328020619,1716773553541,-683.81,0.0003178,4]
[328020620,1716773553552,-621.07,0.0003178,4]
[328020621,1716773553563,-3518.53,0.0003178,4]
[328020622,1716773553575,-707.14,0.0003178,4]
[328020623,1716773553587,-418.51,0.0003178,4]
[328020624,1716773553598,-1400.41,0.0003178,4]
[328020625,1716773553610,-1255.06,0.0003178,4]
[328020626,1716773553621,-591.14,0.0003178,4]
[328020627,1716773553633,-2187.31,0.0003178,4]
[328020628,1716773553644,-1098.66,0.0003178,4]
[328020629,1716773553656,-2106.55,0.0003178,4]
[328020630,1716773553668,-919.68,0.0003178,4]
[328020631,1716773553680,-2336.3,0.0003178,4]
[328020632,1716773553692,-1415.86,0.0003178,4]
[328020633,1716773553703,-1637.74,0.0003178,4]
[328020634,1716773553715,-609.84,0.0003178,4]
[328020635,1716773553727,-500.0,0.0003178,4]
[328020636,1716773553741,-912.06,0.0003178,4]
[328020637,1716773553752,-500.0,0.0003178,4]
[328020638,1716773553764,-1275.52,0.0003178,4]
[328020639,1716773553775,-1558.22,0.0003178,4]
[328020640,1716773553787,-3246.02,0.0003178,4]
[328020641,1716773553799,-1094.9,0.0003178,4]
[328020642,1716773553811,-537.01,0.0003178,4]
[328020643,1716773553822,-999.12,0.0003178,4]
[328020644,1716773553833,-593.71,0.0003178,4]
[328020645,1716773553846,-500.0,0.0003178,4]
[328020646,1716773553858,-1146.79,0.0003178,4]
[328020647,1716773553870,-510.96,0.0003178,4]
[328020648,1716773553881,-1156.39,0.0003178,4]
[328020649,1716773553896,-500.0,0.0003178,4]
[328020650,1716773553908,-1494.94,0.0003178,4]
[328020651,1716773553920,-3014.19,0.0003178,4]
[328020652,1716773553933,-766.93,0.0003178,4]
[328020653,1716773553945,-500.0,0.0003178,4]
[328020654,1716773553957,-1271.17,0.0003178,4]
[328020655,1716773553968,-500.0,0.0003178,4]
[328020656,1716773553980,-500.0,0.0003178,4]
[328020657,1716773553991,-7504.54,0.0003178,4]
[328020658,1716773554003,-500.0,0.0003178,4]
[328020659,1716773554015,-500.0,0.0003178,4]
[328020660,1716773554028,-3268.60593297,0.00031796,3]
[328020661,1716773554039,-423.71279463,0.00031948,4]
[328020662,1716773554050,-500.0,0.00032,2]
[328020663,1716773554061,-157.6,0.00032,2]
[328020664,1716773554072,-500.0,0.00032054,4]
[328020665,1716773554084,-695.36,0.00032054,4]
[328020666,1716773554095,-500.0,0.00032054,4]
[328020667,1716773554106,-736.3,0.00032054,4]
[328020668,1716773554118,-763.53,0.00032054,4]
[328020669,1716773554129,-500.0,0.00032054,4]
[328020670,1716773554140,-500.0,0.00032054,4]
[328020671,1716773554152,-500.0,0.00032054,4]
[328020672,1716773554163,-397.55,0.00032054,4]
[328020673,1716773554175,-209.65,0.00032054,4]
[328020674,1716773554187,-500.0,0.00032054,4]
[328020675,1716773554198,-509.3,0.00032054,4]
[328020676,1716773554209,-500.0,0.00032054,4]
[328020677,1716773554221,-618.09,0.00032054,4]
[328020678,1716773554232,-500.0,0.00032054,4]
[328020679,1716773554243,-500.0,0.00032054,4]
[328020680,1716773554254,-500.0,0.00032054,4]
[328020681,1716773554266,-500.0,0.00032054,4]
[328020682,1716773554277,-500.0,0.00032054,4]
[328020683,1716773554288,-525.03,0.00032054,4]
[328020684,1716773554300,-539.9,0.00032054,4]
[328020685,1716773554311,-657.09,0.00032054,4]
[328020686,1716773554322,-169.33,0.00032054,4]
[328020687,1716773554334,-500.0,0.00032054,4]
[328020688,1716773554346,-750.33,0.00032054,4]
[328020689,1716773554357,-500.0,0.00032054,4]
[328020690,1716773554369,-743.01,0.00032054,4]
[328020691,1716773554381,-500.0,0.00032054,4]
[328020692,1716773554393,-500.0,0.00032054,4]
[328020693,1716773554405,-613.12,0.00032054,4]
[328020694,1716773554416,-500.0,0.00032054,4]
[328020695,1716773554428,-674.79,0.00032054,4]
[328020696,1716773554440,-500.0,0.00032054,4]
[328020697,1716773554451,-637.71,0.00032054,4]
[328020698,1716773554463,-327.29,0.00032054,4]
[328020699,1716773554474,-500.0,0.00032054,4]
[328020700,1716773554485,-610.35,0.00032054,4]
[328020701,1716773554496,-565.63,0.00032054,4]
[328020702,1716773554507,-500.0,0.00032054,4]
[328020703,1716773554518,-1112.41,0.00032054,4]
[328020704,1716773554529,-500.0,0.00032054,4]
[328020705,1716773554540,-518.47,0.00032054,4]
[328020706,1716773554552,-820.24,0.00032054,4]
[328020707,1716773554564,-206.33,0.00032054,4]
[328020708,1716773554575,-500.0,0.00032054,4]
[328020709,1716773554587,-813.92,0.00032054,4]
[328020710,1716773554599,-500.0,0.00032054,4]
[328020711,1716773554610,-500.0,0.00032054,4]
[328020712,1716773554622,-1037.2,0.00032054,4]
[328020713,1716773554633,-1002.02,0.00032054,4]
[328020714,1716773554645,-1135.33,0.00032054,4]
[328020715,1716773554656,-696.41,0.00032054,4]
[328020716,1716773554668,-526.63,0.00032054,4]
[328020717,1716773554679,-566.26,0.00032054,4]
[328020718,1716773554690,-659.81,0.00032054,4]
[328020719,1716773554700,-724.95,0.00032054,4]
[328020720,1716773554711,-715.24,0.00032054,4]
[328020721,1716773554723,-500.0,0.00032054,4]
[328020722,1716773554734,-537.11,0.00032054,4]
[328020723,1716773554745,-1115.92,0.00032054,4]
[328020724,1716773554757,-514.34,0.00032054,4]
[328020725,1716773554768,-500.0,0.00032054,4]
[328020726,1716773554779,-420.61,0.00032054,4]
[328020727,1716773554791,-500.0,0.00032054,4]
[328020728,1716773554802,-500.0,0.00032054,4]
[328020729,1716773554814,-500.0,0.00032054,4]
[328020730,1716773554825,-1161.05,0.00032054,4]
[328020731,1716773554837,-500.0,0.00032054,4]
[328020732,1716773554853,-657.79,0.00032054,4]
[328020733,1716773554865,-500.0,0.00032054,4]
[328020734,1716773554876,-513.43,0.00032054,4]
[328020735,1716773554887,-563.52,0.00032054,4]
[328020736,1716773554899,-553.3,0.00032054,4]
[328020737,1716773554911,-500.0,0.00032054,4]
[328020738,1716773554923,-590.37,0.00032054,4]
[328020739,1716773554936,-500.0,0.00032054,4]
[328020740,1716773554948,-500.0,0.00032054,4]
[328020741,1716773554960,-500.0,0.00032054,4]
[328020742,1716773554972,-677.81,0.00032054,4]
[328020743,1716773554983,-640.38,0.00032054,4]
[328020744,1716773554995,-500.0,0.00032054,4]
[328020745,1716773555007,-689.4,0.00032054,4]
[328020746,1716773555018,-591.05,0.00032054,4]
[328020747,1716773555030,-566.57,0.00032054,4]
[328020748,1716773555042,-1225.47,0.00032054,4]
[328020749,1716773555054,-652.09,0.00032054,4]
[328020750,1716773555065,-921.84,0.00032054,4]
[328020751,1716773555076,-796.9,0.00032054,4]
[328020752,1716773555088,-531.92,0.00032054,4]
[328020753,1716773555100,-500.0,0.00032054,4]
[328020754,1716773555112,-911.01,0.00032054,4]
[328020755,1716773555124,-641.37,0.00032054,4]
[328020756,1716773555135,-1333.61,0.00032054,4]
[328020757,1716773555146,-500.0,0.00032054,4]
[328020758,1716773555616,-500.0,0.00032054,4]
[328020759,1716773555636,-514.48,0.00032054,4]
[328020760,1716773555646,-1275.39,0.00032054,4]
[328020761,1716773555655,-1100.98,0.00032054,4]
[328020762,1716773555665,-500.0,0.00032054,4]
[328020763,1716773555674,-690.87,0.00032054,4]
[328020764,1716773555683,-1641.89,0.00032054,4]
[328020765,1716773555695,-500.0,0.00032054,4]
[328020766,1716773555704,-500.0,0.00032054,4]
[328020767,1716773555713,-500.0,0.00032054,4]
[328020768,1716773555723,-500.0,0.00032054,4]
[328020769,1716773555733,-500.0,0.00032054,4]
[328020770,1716773555742,-500.0,0.00032054,4]
[328020771,1716773555752,-500.0,0.00032054,4]
[328020772,1716773555761,-935.12,0.00032054,4]
[328020773,1716773555771,-500.0,0.00032054,4]
[328020774,1716773555780,-677.22,0.00032054,4]
[328020775,1716773555789,-1013.07,0.00032054,4]
[328020776,1716773555799,-500.0,0.00032054,4]
[328020777,1716773555808,-552.18,0.00032054,4]
[328020778,1716773555818,-500.0,0.00032054,4]
[328020779,1716773555827,-861.85,0.00032054,4]
[328020780,1716773555836,-858.84,0.00032054,4]
[328020781,1716773555848,-500.0,0.00032054,4]
[328020782,1716773555860,-500.0,0.00032054,4]
[328020783,1716773555870,-811.31,0.00032054,4]
[328020784,1716773555880,-549.95,0.00032054,4]
[328020785,1716773555891,-620.92,0.00032054,4]
[328020786,1716773555900,-742.45,0.00032054,4]
[328020787,1716773555910,-500.0,0.00032054,4]
[328020788,1716773555920,-500.0,0.00032054,4]
[328020789,1716773555932,-611.76,0.00032054,4]
[328020790,1716773555943,-159.02,0.00032054,4]
[328020791,1716773555952,-1162.24,0.00032054,4]
[328020792,1716773555962,-803.05,0.00032054,4]
[328020793,1716773555971,-722.78,0.00032054,4]
[328020794,1716773555980,-500.0,0.00032054,4]
[328020795,1716773555990,-958.44,0.00032054,4]
[328020796,1716773555999,-665.19,0.00032054,4]
[328020797,1716773556009,-500.0,0.00032054,4]
[328020798,1716773556018,-742.73,0.00032054,4]
[328020799,1716773556028,-1148.79,0.00032054,4]
[328020800,1716773556037,-684.31,0.00032054,4]
[328020801,1716773556047,-868.94,0.00032054,4]
[328020802,1716773556056,-500.0,0.00032054,4]
[328020803,1716773556065,-500.0,0.00032054,4]
[328020804,1716773556075,-555.76,0.00032054,4]
[328020805,1716773556085,-1021.87,0.00032054,4]
[328020806,1716773556094,-395.15,0.00032054,4]
[328020807,1716773556104,-771.51,0.00032054,4]
[328020808,1716773556113,-500.0,0.00032054,4]
[328020809,1716773556123,-1127.03,0.00032054,4]
[328020810,1716773556133,-500.0,0.00032054,4]
[328020811,1716773556142,-568.94,0.00032054,4]
[328020812,1716773556151,-792.94,0.00032054,4]
[328020813,1716773556162,-1040.28,0.00032054,4]
[328020814,1716773556171,-565.33,0.00032054,4]
[328020815,1716773556181,-621.99,0.00032054,4]
[328020816,1716773556191,-248.11,0.00032054,4]
[328020817,1716773556200,-590.75,0.00032054,4]
[328020818,1716773556209,-641.85,0.00032054,4]
[328020819,1716773556219,-849.19,0.00032054,4]
[328020820,1716773556228,-889.12,0.00032054,4]
[328020821,1716773556238,-530.16,0.00032054,4]
[328020822,1716773556247,-536.89,0.00032054,4]
[328020823,1716773556257,-1259.29,0.00032054,4]
[328020824,1716773556266,-500.0,0.00032054,4]
[328020825,1716773556276,-500.0,0.00032054,4]
[328020826,1716773556286,-568.42,0.00032054,4]
[328020827,1716773556295,-776.42,0.00032054,4]
[328020828,1716773556305,-1677.95,0.00032054,4]
[328020829,1716773556314,-646.9,0.00032054,4]
[328020830,1716773556323,-660.3,0.00032054,4]
[328020831,1716773556332,-537.3,0.00032054,4]
[328020832,1716773556342,-500.0,0.00032054,4]
[328020833,1716773556351,-2614.52,0.00032054,4]
[328020834,1716773556361,-579.16,0.00032054,4]
[328020835,1716773556371,-1322.14,0.00032054,4]
[328020836,1716773556381,-969.5,0.00032054,4]
[328020837,1716773556391,-500.0,0.00032054,4]
[328020838,1716773556400,-609.69,0.00032054,4]
[328020839,1716773556410,-500.0,0.00032054,4]
[328020840,1716773556419,-506.32,0.00032054,4]
[328020841,1716773556430,-1140.34,0.00032054,4]
[328020842,1716773556439,-1339.71,0.00032054,4]
[328020843,1716773556448,-859.67,0.00032054,4]
[328020844,1716773556458,-673.21,0.00032054,4]
[328020845,1716773556467,-7686.08,0.00032054,4]
[328020846,1716773556477,-1172.21,0.00032054,4]
[328020847,1716773556487,-1287.8,0.00032054,4]
[328020848,1716773556496,-900.49,0.00032054,4]
[328020849,1716773556506,-1037.45,0.00032054,4]
[328020850,1716773556515,-507.12,0.00032054,4]
[328020851,1716773556525,-735.66,0.00032054,4]
[328020852,1716773556534,-2771.58,0.00032054,4]
[328020853,1716773556543,-377.84,0.00032054,4]
[328020854,1716773556553,-3172.21,0.00032054,4]
[328020855,1716773556562,-1674.57,0.00032054,4]
[328020856,1716773556572,-500.0,0.00032054,4]
[328020857,1716773556582,-2746.18,0.00032054,4]
[328020858,1716773556591,-500.0,0.00032054,4]
[328020859,1716773556601,-527.2,0.00032054,4]
[328020860,1716773556610,-6205.95,0.00032054,4]
[328020861,1716773556620,-892.56,0.00032054,4]
[328020862,1716773556630,-706.36,0.00032054,4]
[328020863,1716773556639,-1206.85,0.00032054,4]
[328020864,1716773556648,-2601.64,0.00032054,4]
[328020865,1716773556658,-627.83,0.00032054,4]
[328020866,1716773556667,-500.0,0.00032054,4]
[328020867,1716773556677,-165.34,0.00032054,4]
[328020868,1716773556687,-906.32,0.00032054,4]
[328020869,1716773556697,-1301.17,0.00032054,4]
[328020870,1716773556706,-1348.74,0.00032054,4]
[328020871,1716773556716,-1356.31,0.00032054,4]
[328020872,1716773556726,-690.34,0.00032054,4]
[328020873,1716773556736,-500.0,0.00032054,4]
[328020874,1716773556745,-2143.83,0.00032054,4]
[328020875,1716773556755,-2383.33,0.00032054,4]
[328020876,1716773556765,-500.0,0.00032054,4]
[328020877,1716773556774,-500.0,0.00032054,4]
[328020878,1716773556784,-500.0,0.00032054,4]
[328020879,1716773556794,-1576.4,0.00032054,4]
[328020880,1716773556804,-786.1,0.00032054,4]
[328020881,1716773556814,-1713.46,0.00032054,4]
[328020882,1716773556824,-1532.05,0.00032054,4]
[328020883,1716773556834,-1197.25,0.00032054,4]
[328020884,1716773556845,-3324.33,0.00032054,4]
[328020885,1716773556859,-908.76,0.00032054,4]
[328020886,1716773556869,-606.23,0.00032054,4]
[328020887,1716773556879,-881.49,0.00032054,4]
[328020888,1716773556888,-479.74,0.00032054,4]
[328020889,1716773556899,-1016.57,0.00032054,4]
[328020890,1716773556909,-760.48,0.00032054,4]
[328020891,1716773556919,-10252.41,0.00032054,4]
[328020892,1716773556930,-601.05,0.00032054,4]
[328020893,1716773556940,-984.73,0.00032054,4]
[328020894,1716773556949,-879.73,0.00032054,4]
[328020895,1716773556958,-1296.31,0.00032054,4]
[328020896,1716773556968,-913.5,0.00032054,4]
[328020897,1716773556978,-627.73,0.00032054,4]
[328020898,1716773556988,-12959.85,0.00032054,4]
[328020899,1716773556998,-1152.84,0.00032054,4]
[328020900,1716773557008,-1257.91,0.00032054,4]
[328020901,1716773557017,-1837.75,0.00032054,4]
[328020902,1716773557028,-500.0,0.00032054,4]
[328020903,1716773557037,-2024.08,0.00032054,4]
[328020904,1716773557048,-602.61,0.00032054,4]
[328020905,1716773557058,-500.0,0.00032054,4]
[328020906,1716773557068,-1234.35,0.00032054,4]
[328020907,1716773557078,-500.0,0.00032054,4]
[328020908,1716773557089,-1687.26,0.00032054,4]
[328020909,1716773557099,-869.6,0.00032054,4]
[328020910,1716773557109,-572.54,0.00032054,4]
[328020911,1716773557119,-500.0,0.00032054,4]
[328020912,1716773557129,-1160.09,0.00032054,4]
[328020913,1716773557139,-915.48,0.00032054,4]
[328020914,1716773557149,-894.59,0.00032054,4]
[328020915,1716773557159,-1359.95,0.00032054,4]
[328020916,1716773557169,-777.55,0.00032054,4]
[328020917,1716773557179,-500.0,0.00032054,4]
[328020918,1716773557190,-955.96,0.00032054,4]
[328020919,1716773557199,-590.73,0.00032054,4]
[328020920,1716773557209,-824.44,0.00032054,4]
[328020921,1716773557219,-1899.17,0.00032054,4]
[328020922,1716773557228,-500.0,0.00032054,4]
[328020923,1716773557238,-709.3,0.00032054,4]
[328020924,1716773557247,-500.0,0.00032054,4]
[328020925,1716773557257,-1522.47,0.00032054,4]
[328020926,1716773557267,-726.34,0.00032054,4]
[328020927,1716773557277,-1111.07,0.00032054,4]
[328020928,1716773557288,-6862.17,0.00032054,4]
[328020929,1716773557297,-1636.35,0.00032054,4]
[328020930,1716773557307,-500.0,0.00032054,4]
[328020931,1716773557317,-977.11,0.00032054,4]
[328020932,1716773557327,-879.18,0.00032054,4]
[328020933,1716773557337,-1153.21,0.00032054,4]
[328020934,1716773557346,-688.44,0.00032054,4]
[328020935,1716773557356,-706.27,0.00032054,4]
[328020936,1716773557366,-500.0,0.00032054,4]
[328020937,1716773557376,-1139.88,0.00032054,4]
[328020938,1716773557386,-500.0,0.00032054,4]
[328020939,1716773557397,-1445.7,0.00032054,4]
[328020940,1716773557407,-818.95,0.00032054,4]
[328020941,1716773557417,-2130.92,0.00032054,4]
[328020942,1716773557428,-3583.63,0.00032054,4]
[328020943,1716773557437,-5398.85,0.00032054,4]
[328020944,1716773557447,-874.92,0.00032054,4]
[328020945,1716773557457,-1049.53,0.00032054,4]
[328020946,1716773557467,-6155.22,0.00032054,4]
[328020947,1716773557476,-2307.64,0.00032054,4]
[328020948,1716773557487,-500.0,0.00032054,4]
[328020949,1716773557497,-500.0,0.00032054,4]
[328020950,1716773557507,-647.85,0.00032054,4]
[328020951,1716773557517,-1590.14,0.00032054,4]
[328020952,1716773557527,-1987.82,0.00032054,4]
[328020953,1716773557537,-4196.44,0.00032054,4]
[328020954,1716773557546,-1672.39,0.00032054,4]
[328020955,1716773557556,-500.0,0.00032054,4]
[328020956,1716773557566,-1529.19,0.00032054,4]
[328020957,1716773557576,-1357.3,0.00032054,4]
[328020958,1716773557585,-3193.96,0.00032054,4]
[328020959,1716773557596,-500.0,0.00032054,4]
[328020960,1716773557605,-2967.77,0.00032054,4]
[328020961,1716773557615,-1331.17,0.00032054,4]
[328020962,1716773557625,-953.21,0.00032054,4]
[328020963,1716773557634,-683.81,0.00032054,4]
[328020964,1716773557644,-621.07,0.00032054,4]
[328020965,1716773557654,-3518.53,0.00032054,4]
[328020966,1716773557663,-707.14,0.00032054,4]
[328020967,1716773557673,-1400.41,0.00032054,4]
[328020968,1716773557684,-1255.06,0.00032054,4]
[328020969,1716773557694,-2187.31,0.00032054,4]
[328020970,1716773557703,-1098.66,0.00032054,4]
[328020971,1716773557713,-2106.55,0.00032054,4]
[328020972,1716773557723,-919.68,0.00032054,4]
[328020973,1716773557733,-2336.3,0.00032054,4]
[328020974,1716773557743,-1415.86,0.00032054,4]
[328020975,1716773557752,-1637.74,0.00032054,4]
[328020976,1716773557762,-609.84,0.00032054,4]
[328020977,1716773557771,-500.0,0.00032054,4]
[328020978,1716773557780,-912.06,0.00032054,4]
[328020979,1716773557789,-500.0,0.00032054,4]
[328020980,1716773557800,-1275.52,0.00032054,4]
[328020981,1716773557809,-1558.22,0.00032054,4]
[328020982,1716773557819,-3246.02,0.00032054,4]
[328020983,1716773557829,-1094.9,0.00032054,4]
[328020984,1716773557838,-537.01,0.00032054,4]
[328020985,1716773557849,-999.12,0.00032054,4]
[328020986,1716773557861,-593.71,0.00032054,4]
[328020987,1716773557870,-500.0,0.00032054,4]
[328020988,1716773557880,-1146.79,0.00032054,4]
[328020989,1716773557891,-510.96,0.00032054,4]
[328020990,1716773557900,-1156.39,0.00032054,4]
[328020991,1716773557910,-500.0,0.00032054,4]
[328020992,1716773557920,-1494.94,0.00032054,4]
[328020993,1716773557932,-3014.19,0.00032054,4]
[328020994,1716773557942,-766.93,0.00032054,4]
[328020995,1716773557951,-500.0,0.00032054,4]
[328020996,1716773557961,-1271.17,0.00032054,4]
[328020997,1716773557970,-587.12179108,0.00032054,4]
[328020998,1716773557980,-500.0,0.00032054,4]
[328020999,1716773557989,-7504.54,0.00032054,4]
[328021000,1716773557999,-500.0,0.00032054,4]
[328021001,1716773558010,-263.55971618,0.00032054,4]
[328021002,1716773558020,-206.1092088,0.00032054,120]
[328021003,1716773558030,-200.0,0.00032073,2]
[328021004,1716773558040,-500.0,0.00032328,4]
[328021005,1716773558050,-695.36,0.00032328,4]
[328021006,1716773558061,-500.0,0.00032328,4]
[328021007,1716773558071,-736.3,0.00032328,4]
[328021008,1716773558081,-763.53,0.00032328,4]
[328021009,1716773558091,-500.0,0.00032328,4]
[328021010,1716773558100,-500.0,0.00032328,4]
[328021011,1716773558110,-282.14,0.00032328,4]
[328021012,1716773558120,-500.0,0.00032328,4]
[328021013,1716773558130,-509.3,0.00032328,4]
[328021014,1716773558139,-500.0,0.00032328,4]
[328021015,1716773558149,-618.09,0.00032328,4]
[328021016,1716773558159,-168.01,0.00032328,4]
[328021017,1716773558168,-454.69,0.00032328,4]
[328021018,1716773558178,-500.0,0.00032328,4]
[328021019,1716773558188,-500.0,0.00032328,4]
[328021020,1716773558198,-500.0,0.00032328,4]
[328021021,1716773558208,-525.03,0.00032328,4]
[328021022,1716773558218,-539.9,0.00032328,4]
[328021023,1716773558228,-657.09,0.00032328,4]
[328021024,1716773558239,-180.9,0.00032328,4]
[328021025,1716773558248,-750.33,0.00032328,4]
[328021026,1716773558258,-500.0,0.00032328,4]
[328021027,1716773558268,-743.01,0.00032328,4]
[328021028,1716773558279,-331.98,0.00032328,4]
[328021029,1716773558288,-500.0,0.00032328,4]
[328021030,1716773558298,-613.12,0.00032328,4]
[328021031,1716773558308,-500.0,0.00032328,4]
[328021032,1716773558318,-674.79,0.00032328,4]
[328021033,1716773558328,-500.0,0.00032328,4]
[328021034,1716773558338,-637.71,0.00032328,4]
[328021035,1716773558349,-500.0,0.00032328,4]
[328021036,1716773558358,-610.35,0.00032328,4]
[328021037,1716773558368,-565.63,0.00032328,4]
[328021038,1716773558378,-500.0,0.00032328,4]
[328021039,1716773558388,-1112.41,0.00032328,4]
[328021040,1716773558398,-500.0,0.00032328,4]